Workbook

Sheet Качественные
F1: Итого | I1: ОАО "Татнефть" | L1: ДЗО ОАО "Татнефть" | O1: Сервисные УК | R1: Другие заказчики
A2: Предприятие | B2: Название показателя | C2: ед.измерения | D2: Год | E2: Месяц | F2: Прошлый год Итого | G2: Текущий год Итого | H2: Процент Итого | I2: Прошлый год ОАО "Татнефть" | J2: Текущий год ОАО "Татнефть" | K2: Процент ОАО "Татнефть" | L2: Прошлый год ДЗО ОАО "Татнефть" | M2: Текущий год ДЗО ОАО "Татнефть" | N2: Процент ДЗО ОАО "Татнефть" | O2: Прошлый год Сервисные УК | P2: Текущий год Сервисные УК | Q2: Процент Сервисные УК | R2: Прошлый год Другие заказчики | S2: Текущий год Другие заказчики | T2: Процент Другие заказчики
A3: ООО "УК"Татбурнефть" | B3: Осложнение при строительстве скважин (Эксплуатационные скважины без битума) | C3: час/1000м. | D3: 2011 | E3: январь | F3: =I3+L3+O3+R3 -> 0 | G3: =IFERROR(ROUND((((ROUND((J3*#REF!),2))+(ROUND((M3*#REF!),2))+(ROUND((Качественные!S3*#REF!),2)))/#REF!),0),0) -> 0 | H3: =IFERROR(G3/F3*100,0) -> 0 | J3: 61 | K3: =IFERROR(J3/I3*100,0) -> 0 | M3: 28 | N3: =IFERROR(M3/L3*100,0) -> 0 | Q3: =IFERROR(P3/O3*100,0) -> 0 | S3: 4 | T3: =IFERROR(S3/R3*100,0) -> 0
A4: ООО "УК"Татбурнефть" | B4: Осложнение при строительстве скважин (Битумные скважины) | C4: час/1000м. | D4: 2011 | E4: январь | F4: =I4+L4+O4+R4 -> 0 | G4: =IFERROR(ROUND((ROUND((J4*'[1]Количественные '!$J$219),2)/'[1]Количественные '!$J$219),0),0) -> 8 | H4: 0 | J4: 8 | K4: 0 | M4: 0 | N4: 0 | Q4: 0 | S4: 0 | T4: 0
A5: ООО "УК"Татбурнефть" | B5: Осложнение при строительстве скважин (Битумные скважины) | C5: час/1000м. | D5: 2011 | E5: февраль | F5: 0 | G5: =IFERROR(ROUND((ROUND((J5*'[1]Количественные '!$J$220),2)/'[1]Количественные '!$J$220),0),0) -> 0 | H5: 0 | J5: 0 | K5: 0 | M5: 0 | N5: 0 | Q5: 0 | S5: 0 | T5: 0
A6: ООО "УК"Татбурнефть" | B6: Осложнение при строительстве скважин (Эксплуатационные скважины без битума) | C6: час/1000м. | D6: 2011 | E6: февраль | F6: 0 | G6: =IFERROR(ROUND((((ROUND((J6*#REF!),2))+(ROUND((M6*#REF!),2))+(ROUND((Качественные!S6*#REF!),2)))/#REF!),0),0) -> 0 | H6: 0 | J6: 64 | K6: 0 | M6: 23 | N6: 0 | Q6: 0 | S6: 36 | T6: 0
A7: ООО "УК"Татбурнефть" | B7: Осложнение при строительстве скважин (Битумные скважины) | C7: час/1000м. | D7: 2011 | E7: март | F7: 0 | G7: =IFERROR(ROUND((ROUND((J7*'[1]Количественные '!$J$221),2)/'[1]Количественные '!$J$221),0),0) -> 63 | H7: 0 | J7: 63 | K7: 0 | M7: 0 | N7: 0 | Q7: 0 | S7: 0 | T7: 0
A8: ООО "УК"Татбурнефть" | B8: Осложнение при строительстве скважин (Битумные скважины) | C8: час/1000м. | D8: 2011 | E8: апрель | F8: 0 | G8: =IFERROR(ROUND((ROUND((J8*'[1]Количественные '!$J$222),2)/'[1]Количественные '!$J$222),0),0) -> 65 | H8: 0 | J8: 65 | K8: 0 | M8: 0 | N8: 0 | Q8: 0 | S8: 0 | T8: 0
A9: ООО "УК"Татбурнефть" | B9: Осложнение при строительстве скважин (Эксплуатационные скважины без битума) | C9: час/1000м. | D9: 2011 | E9: март | F9: 0 | G9: =IFERROR(ROUND((((ROUND((J9*#REF!),2))+(ROUND((M9*#REF!),2))+(ROUND((Качественные!S9*#REF!),2)))/#REF!),0),0) -> 0 | H9: 0 | J9: 50 | K9: 0 | M9: 28 | N9: 0 | Q9: 0 | S9: 29 | T9: 0
A10: ООО "УК"Татбурнефть" | B10: Осложнение при строительстве скважин (Битумные скважины) | C10: час/1000м. | D10: 2011 | E10: май | F10: 0 | G10: =IFERROR(ROUND((ROUND((J10*'[1]Количественные '!$J$223),2)/'[1]Количественные '!$J$223),0),0) -> 0 | H10: 0 | J10: 0 | K10: 0 | M10: 0 | N10: 0 | Q10: 0 | S10: 0 | T10: 0
A11: ООО "УК"Татбурнефть" | B11: Осложнение при строительстве скважин (Битумные скважины) | C11: час/1000м. | D11: 2011 | E11: июнь | F11: 0 | G11: =IFERROR(ROUND((ROUND((J11*'[1]Количественные '!$J$224),2)/'[1]Количественные '!$J$224),0),0) -> 0 | H11: 0 | J11: 0 | K11: 0 | M11: 0 | N11: 0 | Q11: 0 | S11: 0 | T11: 0
A12: ООО "УК"Татбурнефть" | B12: Осложнение при строительстве скважин (Эксплуатационные скважины без битума) | C12: час/1000м. | D12: 2011 | E12: апрель | F12: 0 | G12: =IFERROR(ROUND((((ROUND((J12*#REF!),2))+(ROUND((M12*#REF!),2))+(ROUND((Качественные!S12*#REF!),2)))/#REF!),0),0) -> 0 | H12: 0 | J12: 55 | K12: 0 | M12: 24 | N12: 0 | Q12: 0 | S12: 101 | T12: 0
A13: ООО "УК"Татбурнефть" | B13: Осложнение при строительстве скважин (Битумные скважины) | C13: час/1000м. | D13: 2011 | E13: июль | F13: 0 | G13: =IFERROR(ROUND((ROUND((J13*'[1]Количественные '!$J$225),2)/'[1]Количественные '!$J$225),0),0) -> 0 | H13: 0 | J13: 0 | K13: 0 | M13: 0 | N13: 0 | Q13: 0 | S13: 0 | T13: 0
A14: ООО "УК"Татбурнефть" | B14: Осложнение при строительстве скважин (Битумные скважины) | C14: час/1000м. | D14: 2011 | E14: август | F14: 0 | G14: =IFERROR(ROUND((ROUND((J14*'[1]Количественные '!$J$226),2)/'[1]Количественные '!$J$226),0),0) -> 36 | H14: 0 | J14: 36 | K14: 0 | M14: 0 | N14: 0 | Q14: 0 | S14: 0 | T14: 0
A15: ООО "УК"Татбурнефть" | B15: Осложнение при строительстве скважин (Эксплуатационные скважины без битума) | C15: час/1000м. | D15: 2011 | E15: май | F15: 0 | G15: =IFERROR(ROUND((((ROUND((J15*#REF!),2))+(ROUND((M15*#REF!),2))+(ROUND((Качественные!S15*#REF!),2)))/#REF!),0),0) -> 0 | H15: 0 | J15: 43 | K15: 0 | M15: 16 | N15: 0 | Q15: 0 | S15: 30 | T15: 0
A16: ООО "УК"Татбурнефть" | B16: Осложнение при строительстве скважин (Битумные скважины) | C16: час/1000м. | D16: 2011 | E16: сентябрь | F16: 0 | G16: =IFERROR(ROUND((ROUND((J16*'[1]Количественные '!$J$227),2)/'[1]Количественные '!$J$227),0),0) -> 0 | H16: 0 | J16: 0 | K16: 0 | M16: 0 | N16: 0 | Q16: 0 | S16: 0 | T16: 0
A17: ООО "УК"Татбурнефть" | B17: Осложнение при строительстве скважин (Битумные скважины) | C17: час/1000м. | D17: 2011 | E17: октябрь | F17: 0 | G17: =IFERROR(ROUND((ROUND((J17*'[1]Количественные '!$J$228),2)/'[1]Количественные '!$J$228),0),0) -> 0 | H17: 0 | J17: 0 | K17: 0 | M17: 0 | N17: 0 | Q17: 0 | S17: 0 | T17: 0
A18: ООО "УК"Татбурнефть" | B18: Осложнение при строительстве скважин (Эксплуатационные скважины без битума) | C18: час/1000м. | D18: 2011 | E18: июнь | F18: 0 | G18: =IFERROR(ROUND((((ROUND((J18*#REF!),2))+(ROUND((M18*#REF!),2))+(ROUND((Качественные!S18*#REF!),2)))/#REF!),0),0) -> 0 | H18: 0 | J18: 46 | K18: 0 | M18: 23 | N18: 0 | Q18: 0 | S18: 85 | T18: 0
A19: ООО "УК"Татбурнефть" | B19: Осложнение при строительстве скважин (Битумные скважины) | C19: час/1000м. | D19: 2011 | E19: ноябрь | F19: 0 | G19: =IFERROR(ROUND((ROUND((J19*'[1]Количественные '!$J$229),2)/'[1]Количественные '!$J$229),0),0) -> 73 | H19: 0 | J19: 73 | K19: 0 | M19: 0 | N19: 0 | Q19: 0 | S19: 0 | T19: 0
A20: ООО "УК"Татбурнефть" | B20: Осложнение при строительстве скважин (Битумные скважины) | C20: час/1000м. | D20: 2011 | E20: декабрь | F20: 0 | G20: =IFERROR(ROUND((ROUND((J20*'[1]Количественные '!$J$230),2)/'[1]Количественные '!$J$230),0),0) -> 0 | H20: 0 | J20: 0 | K20: 0 | M20: 0 | N20: 0 | Q20: 0 | S20: 0 | T20: 0
A21: ООО "УК"Татбурнефть" | B21: Осложнение при строительстве скважин (Эксплуатационные скважины без битума) | C21: час/1000м. | D21: 2011 | E21: июль | F21: 0 | G21: =IFERROR(ROUND((((ROUND((J21*#REF!),2))+(ROUND((M21*#REF!),2))+(ROUND((Качественные!S21*#REF!),2)))/#REF!),0),0) -> 0 | H21: 0 | J21: 47 | K21: 0 | M21: 100 | N21: 0 | Q21: 0 | S21: 21 | T21: 0
A22: ООО "УК"Татбурнефть" | B22: Осложнение при строительстве скважин (Битумные скважины) | C22: час/1000м. | D22: 2012 | E22: январь | G22: =IFERROR(ROUND((ROUND((J22*'[1]Количественные '!$J$231),2)/'[1]Количественные '!$J$231),0),0) -> 37 | H22: 0 | I22: =#REF! ->  | J22: 37 | K22: 0 | L22: =#REF! ->  | M22: 0 | N22: 0 | O22: =#REF! ->  | Q22: 0 | R22: =#REF! ->  | S22: 0 | T22: 0
A23: ООО "УК"Татбурнефть" | B23: Осложнение при строительстве скважин (Битумные скважины) | C23: час/1000м. | D23: 2012 | E23: февраль | G23: =IFERROR(ROUND((ROUND((J23*'[1]Количественные '!$J$232),2)/'[1]Количественные '!$J$232),0),0) -> 2 | H23: 0 | I23: =#REF! ->  | J23: 2 | K23: 0 | L23: =#REF! ->  | M23: 0 | N23: 0 | O23: =#REF! ->  | Q23: 0 | R23: =#REF! ->  | S23: 0 | T23: 0
A24: ООО "УК"Татбурнефть" | B24: Осложнение при строительстве скважин (Эксплуатационные скважины без битума) | C24: час/1000м. | D24: 2011 | E24: август | F24: 0 | G24: =IFERROR(ROUND((((ROUND((J24*#REF!),2))+(ROUND((M24*#REF!),2))+(ROUND((Качественные!S24*#REF!),2)))/#REF!),0),0) -> 0 | H24: 0 | J24: 49 | K24: 0 | M24: 14 | N24: 0 | Q24: 0 | S24: 78 | T24: 0
A25: ООО "УК"Татбурнефть" | B25: Осложнение при строительстве скважин (Битумные скважины) | C25: час/1000м. | D25: 2012 | E25: март | G25: =IFERROR(ROUND((ROUND((J25*'[1]Количественные '!$J$233),2)/'[1]Количественные '!$J$233),0),0) -> 0 | H25: 0 | I25: =#REF! ->  | J25: 0 | K25: 0 | L25: =#REF! ->  | M25: 0 | N25: 0 | O25: =#REF! ->  | Q25: 0 | R25: =#REF! ->  | T25: 0
A26: ООО "УК"Татбурнефть" | B26: Осложнение при строительстве скважин (Битумные скважины) | C26: час/1000м. | D26: 2012 | E26: апрель | G26: =IFERROR(ROUND((ROUND((J26*'[1]Количественные '!$J$234),2)/'[1]Количественные '!$J$234),0),0) -> 10 | H26: 0 | I26: =#REF! ->  | J26: 10 | K26: 0 | L26: =#REF! ->  | M26: 0 | N26: 0 | O26: =#REF! ->  | Q26: 0 | R26: =#REF! ->  | S26: 0 | T26: 0
A27: ООО "УК"Татбурнефть" | B27: Осложнение при строительстве скважин (Эксплуатационные скважины без битума) | C27: час/1000м. | D27: 2011 | E27: сентябрь | F27: 0 | G27: =IFERROR(ROUND((((ROUND((J27*#REF!),2))+(ROUND((M27*#REF!),2))+(ROUND((Качественные!S27*#REF!),2)))/#REF!),0),0) -> 0 | H27: 0 | J27: 57 | K27: 0 | M27: 13 | N27: 0 | Q27: 0 | S27: 9 | T27: 0
A28: ООО "УК"Татбурнефть" | B28: Осложнение при строительстве скважин (Битумные скважины) | C28: час/1000м. | D28: 2012 | E28: май | G28: =IFERROR(ROUND((ROUND((J28*'[1]Количественные '!$J$235),2)/'[1]Количественные '!$J$235),0),0) -> 0 | H28: 0 | I28: =#REF! ->  | J28: 0 | K28: 0 | L28: =#REF! ->  | M28: 0 | N28: 0 | O28: =#REF! ->  | Q28: 0 | R28: =#REF! ->  | S28: 0 | T28: 0
A29: ООО "УК"Татбурнефть" | B29: Осложнение при строительстве скважин (Битумные скважины) | C29: час/1000м. | D29: 2012 | E29: июнь | G29: =IFERROR(ROUND((ROUND((J29*'[1]Количественные '!$J$236),2)/'[1]Количественные '!$J$236),0),0) -> 6 | H29: 0 | I29: =#REF! ->  | J29: 6 | K29: 0 | L29: =#REF! ->  | M29: 0 | N29: 0 | O29: =#REF! ->  | Q29: 0 | R29: =#REF! ->  | S29: 0 | T29: 0
A30: ООО "УК"Татбурнефть" | B30: Осложнение при строительстве скважин (Эксплуатационные скважины без битума) | C30: час/1000м. | D30: 2011 | E30: октябрь | F30: 0 | G30: =IFERROR(ROUND((((ROUND((J30*#REF!),2))+(ROUND((M30*#REF!),2))+(ROUND((Качественные!S30*#REF!),2)))/#REF!),0),0) -> 0 | H30: 0 | J30: 70 | K30: 0 | M30: 0 | N30: 0 | Q30: 0 | S30: 36 | T30: 0
A31: ООО "УК"Татбурнефть" | B31: Осложнение при строительстве скважин (Битумные скважины) | C31: час/1000м. | D31: 2012 | E31: июль | G31: =IFERROR(ROUND((ROUND((J31*'[1]Количественные '!$J$237),2)/'[1]Количественные '!$J$237),0),0) -> 0 | H31: 0 | I31: =#REF! ->  | J31: 0 | K31: 0 | L31: =#REF! ->  | M31: 0 | N31: 0 | O31: =#REF! ->  | Q31: 0 | R31: =#REF! ->  | S31: 0 | T31: 0
A32: ООО "УК"Татбурнефть" | B32: Осложнение при строительстве скважин (Битумные скважины) | C32: час/1000м. | D32: 2012 | E32: август | G32: =IFERROR(ROUND((ROUND((J32*'[1]Количественные '!$J$238),2)/'[1]Количественные '!$J$238),0),0) -> 0 | H32: 0 | I32: =#REF! ->  | J32: 0 | K32: 0 | L32: =#REF! ->  | M32: 0 | N32: 0 | O32: =#REF! ->  | Q32: 0 | R32: =#REF! ->  | S32: 0 | T32: 0
A33: ООО "УК"Татбурнефть" | B33: Осложнение при строительстве скважин (Эксплуатационные скважины без битума) | C33: час/1000м. | D33: 2011 | E33: ноябрь | F33: 0 | G33: =IFERROR(ROUND((((ROUND((J33*#REF!),2))+(ROUND((M33*#REF!),2))+(ROUND((Качественные!S33*#REF!),2)))/#REF!),0),0) -> 0 | H33: 0 | J33: 58 | K33: 0 | M33: 39 | N33: 0 | Q33: 0 | S33: 48 | T33: 0
A34: ООО "УК"Татбурнефть" | B34: Осложнение при строительстве скважин (Битумные скважины) | C34: час/1000м. | D34: 2012 | E34: сентябрь | G34: =IFERROR(ROUND((ROUND((J34*'[1]Количественные '!$J$239),2)/'[1]Количественные '!$J$239),0),0) -> 8 | H34: 0 | I34: =#REF! ->  | J34: 8 | K34: 0 | L34: =#REF! ->  | M34: 0 | N34: 0 | O34: =#REF! ->  | Q34: 0 | R34: =#REF! ->  | S34: 0 | T34: 0
A35: ООО "УК"Татбурнефть" | B35: Осложнение при строительстве скважин (Битумные скважины) | C35: час/1000м. | D35: 2012 | E35: октябрь | G35: =IFERROR(ROUND((ROUND((J35*'[1]Количественные '!$J$240),2)/'[1]Количественные '!$J$240),0),0) -> 0 | H35: 0 | I35: =#REF! ->  | J35: 0 | K35: 0 | L35: =#REF! ->  | M35: 0 | N35: 0 | O35: =#REF! ->  | Q35: 0 | R35: =#REF! ->  | S35: 0 | T35: 0
A36: ООО "УК"Татбурнефть" | B36: Осложнение при строительстве скважин (Эксплуатационные скважины без битума) | C36: час/1000м. | D36: 2011 | E36: декабрь | F36: 0 | G36: =IFERROR(ROUND((((ROUND((J36*#REF!),2))+(ROUND((M36*#REF!),2))+(ROUND((Качественные!S36*#REF!),2)))/#REF!),0),0) -> 0 | H36: 0 | J36: 67 | K36: 0 | M36: 218 | N36: 0 | Q36: 0 | S36: 38 | T36: 0
A37: ООО "УК"Татбурнефть" | B37: Осложнение при строительстве скважин (Битумные скважины) | C37: час/1000м. | D37: 2012 | E37: ноябрь | G37: =IFERROR(ROUND((ROUND((J37*'[1]Количественные '!$J$241),2)/'[1]Количественные '!$J$241),0),0) -> 0 | H37: 0 | I37: =#REF! ->  | J37: 0 | K37: 0 | L37: =#REF! ->  | M37: 0 | N37: 0 | O37: =#REF! ->  | Q37: 0 | R37: =#REF! ->  | S37: 0 | T37: 0
A38: ООО "УК"Татбурнефть" | B38: Осложнение при строительстве скважин (Битумные скважины) | C38: час/1000м. | D38: 2012 | E38: декабрь | G38: =IFERROR(ROUND((ROUND((J38*'[1]Количественные '!$J$242),2)/'[1]Количественные '!$J$242),0),0) -> 0 | H38: 0 | I38: =#REF! ->  | J38: 0 | K38: 0 | L38: =#REF! ->  | M38: 0 | N38: 0 | O38: =#REF! ->  | Q38: 0 | R38: =#REF! ->  | S38: 0 | T38: 0
A39: ООО "УК"Татбурнефть" | B39: Осложнение при строительстве скважин (Эксплуатационные скважины без битума) | C39: час/1000м. | D39: 2012 | E39: январь | F39: =G3 -> 0 | G39: =IFERROR(ROUND((((ROUND((J39*#REF!),2))+(ROUND((M39*#REF!),2))+(ROUND((Качественные!S39*#REF!),2)))/#REF!),0),0) -> 0 | H39: 0 | I39: =J3 -> 61 | J39: 65 | K39: 106.557377 | L39: =M3 -> 28 | M39: 44 | N39: 157.1428571 | O39: =P3 -> 0 | Q39: 0 | R39: =S3 -> 4 | S39: 37 | T39: 925
A40: ООО "УК"Татбурнефть" | B40: Осложнение при строительстве скважин (Битумные скважины) | C40: час/1000м. | D40: 2013 | E40: январь | F40: =I40+L40+O40+R40 -> 8 | G40: =IFERROR(ROUND((ROUND((J40*'[1]Количественные '!$J$243),2)/'[1]Количественные '!$J$243),0),0) -> 0 | H40: 0 | I40: 8 | J40: 0 | K40: 0 | L40: 0 | M40: 0 | N40: 0 | O40: 0 | Q40: 0 | R40: 0 | S40: 0 | T40: 0
A41: ООО "УК"Татбурнефть" | B41: Осложнение при строительстве скважин (Битумные скважины) | C41: час/1000м. | D41: 2013 | E41: февраль | F41: =I41+L41+O41+R41 -> 0 | G41: =IFERROR(ROUND((ROUND((J41*'[1]Количественные '!$J$244),2)/'[1]Количественные '!$J$244),0),0) -> 11 | H41: 0 | I41: 0 | J41: 11 | K41: 0 | L41: 0 | M41: 0 | N41: 0 | O41: 0 | Q41: 0 | R41: 0 | S41: 0 | T41: 0
A42: ООО "УК"Татбурнефть" | B42: Осложнение при строительстве скважин (Эксплуатационные скважины без битума) | C42: час/1000м. | D42: 2012 | E42: февраль | F42: =G6 -> 0 | G42: =IFERROR(ROUND((((ROUND((J42*#REF!),2))+(ROUND((M42*#REF!),2))+(ROUND((Качественные!S42*#REF!),2)))/#REF!),0),0) -> 0 | H42: 0 | I42: 64 | J42: 53 | K42: 82.8125 | L42: 23 | M42: 129 | N42: 560.8695652 | O42: 0 | Q42: 0 | R42: 36 | S42: 32 | T42: 88.88888889
A43: ООО "УК"Татбурнефть" | B43: Осложнение при строительстве скважин (Битумные скважины) | C43: час/1000м. | D43: 2013 | E43: март | F43: =I43+L43+O43+R43 -> 63 | G43: =IFERROR(ROUND((ROUND((J43*'[1]Количественные '!$J$245),2)/'[1]Количественные '!$J$245),0),0) -> 0 | H43: 0 | I43: 63 | J43: 0 | K43: 0 | L43: 0 | M43: 0 | N43: 0 | O43: 0 | Q43: 0 | R43: 0 | S43: 0 | T43: 0
A44: ООО "УК"Татбурнефть" | B44: Осложнение при строительстве скважин (Битумные скважины) | C44: час/1000м. | D44: 2013 | E44: апрель | F44: =I44+L44+O44+R44 -> 65 | G44: =IFERROR(ROUND((ROUND((J44*'[1]Количественные '!$J$246),2)/'[1]Количественные '!$J$246),0),0) -> 0 | H44: 0 | I44: 65 | J44: 0 | K44: 0 | L44: 0 | M44: 0 | N44: 0 | O44: 0 | Q44: 0 | R44: 0 | S44: 0 | T44: 0
A45: ООО "УК"Татбурнефть" | B45: Осложнение при строительстве скважин (Эксплуатационные скважины без битума) | C45: час/1000м. | D45: 2012 | E45: март | F45: =G9 -> 0 | G45: =IFERROR(ROUND((((ROUND((J45*#REF!),2))+(ROUND((M45*#REF!),2))+(ROUND((Качественные!S45*#REF!),2)))/#REF!),0),0) -> 0 | H45: 0 | I45: 50 | J45: 51 | K45: 102 | L45: 28 | M45: 67 | N45: 239.2857143 | O45: 0 | Q45: 0 | R45: 29 | S45: 38 | T45: 131.0344828
A46: ООО "УК"Татбурнефть" | B46: Осложнение при строительстве скважин (Битумные скважины) | C46: час/1000м. | D46: 2013 | E46: май | F46: =I46+L46+O46+R46 -> 0 | G46: =IFERROR(ROUND((ROUND((J46*'[1]Количественные '!$J$247),2)/'[1]Количественные '!$J$247),0),0) -> 0 | H46: 0 | I46: 0 | K46: 0 | L46: 0 | M46: 0 | N46: 0 | O46: 0 | Q46: 0 | R46: 0 | S46: 0 | T46: 0
A47: ООО "УК"Татбурнефть" | B47: Осложнение при строительстве скважин (Битумные скважины) | C47: час/1000м. | D47: 2013 | E47: июнь | F47: =I47+L47+O47+R47 -> 0 | G47: =IFERROR(ROUND((ROUND((J47*'[1]Количественные '!$J$248),2)/'[1]Количественные '!$J$248),0),0) -> 0 | H47: 0 | I47: 0 | J47: 0 | K47: 0 | L47: 0 | M47: 0 | N47: 0 | O47: 0 | Q47: 0 | R47: 0 | T47: 0
A48: ООО "УК"Татбурнефть" | B48: Осложнение при строительстве скважин (Эксплуатационные скважины без битума) | C48: час/1000м. | D48: 2012 | E48: апрель | F48: =G12 -> 0 | G48: =IFERROR(ROUND((((ROUND((J48*#REF!),2))+(ROUND((M48*#REF!),2))+(ROUND((Качественные!S48*#REF!),2)))/#REF!),0),0) -> 0 | H48: 0 | I48: 55 | J48: 64 | K48: 116.3636364 | L48: 24 | M48: 14 | N48: 58.33333333 | O48: 0 | Q48: 0 | R48: 101 | S48: 34 | T48: 33.66336634
A49: ООО "УК"Татбурнефть" | B49: Осложнение при строительстве скважин (Битумные скважины) | C49: час/1000м. | D49: 2013 | E49: июль | F49: =I49+L49+O49+R49 -> 0 | G49: =IFERROR(ROUND((ROUND((J49*'[1]Количественные '!$J$249),2)/'[1]Количественные '!$J$249),0),0) -> 0 | H49: 0 | I49: 0 | J49: 0 | K49: 0 | L49: 0 | M49: 0 | N49: 0 | O49: 0 | Q49: 0 | R49: 0 | S49: 0 | T49: 0
A50: ООО "УК"Татбурнефть" | B50: Осложнение при строительстве скважин (Битумные скважины) | C50: час/1000м. | D50: 2013 | E50: август | F50: =I50+L50+O50+R50 -> 36 | G50: =IFERROR(ROUND((ROUND((J50*'[1]Количественные '!$J$250),2)/'[1]Количественные '!$J$250),0),0) -> 0 | H50: 0 | I50: 36 | J50: 0 | K50: 0 | L50: 0 | M50: 0 | N50: 0 | O50: 0 | Q50: 0 | R50: 0 | S50: 0 | T50: 0
A51: ООО "УК"Татбурнефть" | B51: Осложнение при строительстве скважин (Эксплуатационные скважины без битума) | C51: час/1000м. | D51: 2012 | E51: май | F51: =G15 -> 0 | G51: =IFERROR(ROUND((((ROUND((J51*#REF!),2))+(ROUND((M51*#REF!),2))+(ROUND((Качественные!S51*#REF!),2)))/#REF!),0),0) -> 0 | H51: 0 | I51: 43 | J51: 63 | K51: 146.5116279 | L51: 16 | M51: 32 | N51: 200 | O51: 0 | Q51: 0 | R51: 30 | S51: 75 | T51: 250
A52: ООО "УК"Татбурнефть" | B52: Осложнение при строительстве скважин (Битумные скважины) | C52: час/1000м. | D52: 2013 | E52: сентябрь | F52: =I52+L52+O52+R52 -> 0 | G52: =IFERROR(ROUND((ROUND((J52*'[1]Количественные '!$J$251),2)/'[1]Количественные '!$J$251),0),0) -> 0 | H52: =IFERROR(G52/F52*100,0) -> 0 | I52: 0 | J52: 0 | K52: =IFERROR(J52/I52*100,0) -> 0 | L52: 0 | N52: =IFERROR(M52/L52*100,0) -> 0 | O52: 0 | Q52: =IFERROR(P52/O52*100,0) -> 0 | R52: 0 | T52: =IFERROR(S52/R52*100,0) -> 0
A53: ООО "УК"Татбурнефть" | B53: Осложнение при строительстве скважин (Битумные скважины) | C53: час/1000м. | D53: 2013 | E53: октябрь | F53: =I53+L53+O53+R53 -> 0 | G53: =IFERROR(ROUND((ROUND((J53*'[1]Количественные '!$J$252),2)/'[1]Количественные '!$J$252),0),0) -> 0 | H53: 0 | I53: 0 | J53: 0 | K53: 0 | L53: 0 | N53: 0 | O53: 0 | Q53: 0 | R53: 0 | T53: 0
A54: ООО "УК"Татбурнефть" | B54: Осложнение при строительстве скважин (Эксплуатационные скважины без битума) | C54: час/1000м. | D54: 2012 | E54: июнь | F54: =G18 -> 0 | G54: =IFERROR(ROUND((((ROUND((J54*#REF!),2))+(ROUND((M54*#REF!),2))+(ROUND((Качественные!S54*#REF!),2)))/#REF!),0),0) -> 0 | H54: 0 | I54: 46 | J54: 54 | K54: 117.3913043 | L54: 23 | M54: 60 | N54: 260.8695652 | O54: 0 | Q54: 0 | R54: 85 | S54: 86 | T54: 101.1764706
A55: ООО "УК"Татбурнефть" | B55: Осложнение при строительстве скважин (Битумные скважины) | C55: час/1000м. | D55: 2013 | E55: ноябрь | F55: =I55+L55+O55+R55 -> 73 | G55: =IFERROR(ROUND((ROUND((J55*'[1]Количественные '!$J$253),2)/'[1]Количественные '!$J$253),0),0) -> 29 | H55: 39.7260274 | I55: 73 | J55: 29 | K55: 39.7260274 | L55: 0 | N55: 0 | O55: 0 | Q55: 0 | R55: 0 | T55: 0
A56: ООО "УК"Татбурнефть" | B56: Осложнение при строительстве скважин (Битумные скважины) | C56: час/1000м. | D56: 2013 | E56: декабрь | F56: =I56+L56+O56+R56 -> 0 | G56: =IFERROR(ROUND((ROUND((J56*'[1]Количественные '!$J$254),2)/'[1]Количественные '!$J$254),0),0) -> 0 | H56: 0 | I56: 0 | J56: 0 | K56: 0 | L56: 0 | N56: 0 | O56: 0 | Q56: 0 | R56: 0 | T56: 0
A57: ООО "УК"Татбурнефть" | B57: Осложнение при строительстве скважин (Эксплуатационные скважины без битума) | C57: час/1000м. | D57: 2012 | E57: июль | F57: =G21 -> 0 | G57: =IFERROR(ROUND((((ROUND((J57*#REF!),2))+(ROUND((M57*#REF!),2))+(ROUND((Качественные!S57*#REF!),2)))/#REF!),0),0) -> 0 | H57: 0 | I57: 47 | J57: 61 | K57: 129.787234 | L57: 100 | M57: 27 | N57: 27 | O57: 0 | Q57: 0 | R57: 21 | S57: 16 | T57: 76.19047619
A58: ООО "УК"Татбурнефть" | B58: Осложнение при строительстве скважин (Битумные скважины) | C58: час/1000м. | D58: 2014 | E58: январь | F58: =G40 -> 0 | G58: =ROUND((ROUND((I58*#REF!), 2)/#REF!),0) ->  | H58: 0 | I58: =J40 -> 0 | J58: 0 | K58: 0 | L58: =M40 -> 0 | M58: 0 | N58: 0 | O58: =P40 -> 0 | P58: 0 | Q58: 0 | R58: =S40 -> 0 | S58: 0 | T58: 0
A59: ООО "УК"Татбурнефть" | B59: Осложнение при строительстве скважин (Битумные скважины) | C59: час/1000м. | D59: 2014 | E59: февраль | F59: =G41 -> 11 | G59: =ROUND((ROUND((I59*#REF!), 2)/#REF!),0) ->  | H59: 0 | I59: =J41 -> 11 | J59: 0 | K59: 0 | L59: =M41 -> 0 | N59: 0 | O59: =P41 -> 0 | Q59: 0 | R59: =S41 -> 0 | T59: 0
A60: ООО "УК"Татбурнефть" | B60: Осложнение при строительстве скважин (Эксплуатационные скважины без битума) | C60: час/1000м. | D60: 2012 | E60: август | F60: =G24 -> 0 | G60: =IFERROR(ROUND((((ROUND((J60*#REF!),2))+(ROUND((M60*#REF!),2))+(ROUND((Качественные!S60*#REF!),2)))/#REF!),0),0) -> 0 | H60: 0 | I60: =J24 -> 49 | J60: 58 | K60: 118.3673469 | L60: =M24 -> 14 | M60: 67 | N60: 478.5714286 | O60: =P24 -> 0 | Q60: 0 | R60: =S24 -> 78 | S60: 24 | T60: 30.76923077
A61: ООО "УК"Татбурнефть" | B61: Осложнение при строительстве скважин (Битумные скважины) | C61: час/1000м. | D61: 2014 | E61: март | F61: =G43 -> 0 | G61: =ROUND((ROUND((I61*#REF!), 2)/#REF!),0) ->  | H61: 0 | I61: =J43 -> 0 | J61: 0 | K61: 0 | L61: =M43 -> 0 | N61: 0 | O61: =P43 -> 0 | Q61: 0 | R61: =S43 -> 0 | T61: 0
A62: ООО "УК"Татбурнефть" | B62: Осложнение при строительстве скважин (Битумные скважины) | C62: час/1000м. | D62: 2014 | E62: апрель | F62: 0 | G62: =ROUND((ROUND((I62*#REF!), 2)/#REF!),0) ->  | H62: 0 | I62: 0 | J62: 7.6 | K62: 0 | L62: 0 | N62: 0 | O62: 0 | Q62: 0 | R62: 0 | T62: 0
A63: ООО "УК"Татбурнефть" | B63: Осложнение при строительстве скважин (Эксплуатационные скважины без битума) | C63: час/1000м. | D63: 2012 | E63: сентябрь | F63: =G27 -> 0 | G63: =IFERROR(ROUND((((ROUND((J63*#REF!),2))+(ROUND((M63*#REF!),2))+(ROUND((Качественные!S63*#REF!),2)))/#REF!),0),0) -> 0 | H63: 0 | I63: =J27 -> 57 | J63: 57 | K63: 100 | L63: =M27 -> 13 | M63: 46 | N63: 353.8461538 | O63: =P27 -> 0 | Q63: 0 | R63: =S27 -> 9 | S63: 8 | T63: 88.88888889
A64: ООО "УК"Татбурнефть" | B64: Осложнение при строительстве скважин (Битумные скважины) | C64: час/1000м. | D64: 2014 | E64: май | F64: =G46 -> 0 | G64: =ROUND((ROUND((J64*#REF!),2)/#REF!),0) ->  | H64: 0 | I64: =J46 -> 0 | J64: 10 | K64: 0 | L64: =M46 -> 0 | N64: 0 | O64: =P46 -> 0 | Q64: 0 | R64: =S46 -> 0 | T64: 0
A65: ООО "УК"Татбурнефть" | B65: Осложнение при строительстве скважин (Битумные скважины) | C65: час/1000м. | D65: 2014 | E65: июнь | F65: 0 | G65: =ROUND((ROUND((J65*#REF!),2)/#REF!),0) ->  | H65: 0 | I65: 0 | J65: 0 | K65: 0 | L65: 0 | N65: 0 | O65: 0 | Q65: 0 | R65: 0 | T65: 0
A66: ООО "УК"Татбурнефть" | B66: Осложнение при строительстве скважин (Эксплуатационные скважины без битума) | C66: час/1000м. | D66: 2012 | E66: октябрь | F66: =G30 -> 0 | G66: =IFERROR(ROUND((((ROUND((J66*#REF!),2))+(ROUND((M66*#REF!),2))+(ROUND((Качественные!S66*#REF!),2)))/#REF!),0),0) -> 0 | H66: 0 | I66: =J30 -> 70 | J66: 64 | K66: 91.42857143 | L66: =M30 -> 0 | M66: 123 | N66: 0 | O66: =P30 -> 0 | Q66: 0 | R66: =S30 -> 36 | S66: 28 | T66: 77.77777778
A67: ООО "УК"Татбурнефть" | B67: Осложнение при строительстве скважин (Битумные скважины) | C67: час/1000м. | D67: 2014 | E67: июль | F67: =G49 -> 0 | G67: =ROUND((ROUND((J67*#REF!),2)/#REF!),0) ->  | H67: 0 | I67: =J49 -> 0 | J67: 0 | K67: 0 | L67: =M49 -> 0 | N67: 0 | O67: =P49 -> 0 | Q67: 0 | R67: =S49 -> 0 | T67: 0
A68: ООО "УК"Татбурнефть" | B68: Осложнение при строительстве скважин (Битумные скважины) | C68: час/1000м. | D68: 2014 | E68: август | F68: 0 | G68: =ROUND((ROUND((J68*#REF!),2)/#REF!),0) ->  | H68: 0 | I68: 0 | K68: 0 | L68: 0 | N68: 0 | O68: 0 | Q68: 0 | R68: 0 | T68: 0
A69: ООО "УК"Татбурнефть" | B69: Осложнение при строительстве скважин (Эксплуатационные скважины без битума) | C69: час/1000м. | D69: 2012 | E69: ноябрь | F69: =G33 -> 0 | G69: =IFERROR(ROUND((((ROUND((J69*#REF!),2))+(ROUND((M69*#REF!),2))+(ROUND((Качественные!S69*#REF!),2)))/#REF!),0),0) -> 0 | H69: 0 | I69: =J33 -> 58 | J69: 82 | K69: 141.3793103 | L69: =M33 -> 39 | M69: 285 | N69: 730.7692308 | O69: =P33 -> 0 | Q69: 0 | R69: =S33 -> 48 | S69: 20 | T69: 41.66666667
A70: ООО "УК"Татбурнефть" | B70: Осложнение при строительстве скважин (Битумные скважины) | C70: час/1000м. | D70: 2014 | E70: сентябрь | F70: =G52 -> 0 | G70: =ROUND((ROUND((J70*#REF!),2)/#REF!),0) ->  | H70: 0 | I70: =J52 -> 0 | K70: 0 | L70: =M52 -> 0 | N70: 0 | O70: =P52 -> 0 | Q70: 0 | R70: =S52 -> 0 | T70: 0
A71: ООО "УК"Татбурнефть" | B71: Осложнение при строительстве скважин (Битумные скважины) | C71: час/1000м. | D71: 2014 | E71: октябрь | F71: 0 | G71: =ROUND((ROUND((J71*#REF!),2)/#REF!),0) ->  | H71: 0 | I71: 0 | K71: 0 | L71: 0 | N71: 0 | O71: 0 | Q71: 0 | R71: 0 | T71: 0
A72: ООО "УК"Татбурнефть" | B72: Осложнение при строительстве скважин (Эксплуатационные скважины без битума) | C72: час/1000м. | D72: 2012 | E72: декабрь | F72: =G36 -> 0 | G72: =IFERROR(ROUND((((ROUND((J72*#REF!),2))+(ROUND((M72*#REF!),2))+(ROUND((Качественные!S72*#REF!),2)))/#REF!),0),0) -> 0 | H72: 0 | I72: =J36 -> 67 | J72: 49 | K72: 73.13432836 | L72: =M36 -> 218 | M72: 7 | N72: 3.211009174 | O72: =P36 -> 0 | Q72: 0 | R72: =S36 -> 38 | S72: 40 | T72: 105.2631579
A73: ООО "УК"Татбурнефть" | B73: Осложнение при строительстве скважин (Битумные скважины) | C73: час/1000м. | D73: 2014 | E73: ноябрь | F73: =G55 -> 29 | G73: =ROUND((ROUND((J73*#REF!),2)/#REF!),0) ->  | H73: 0 | I73: =J55 -> 29 | K73: 0 | L73: =M55 -> 0 | N73: 0 | O73: =P55 -> 0 | Q73: 0 | R73: =S55 -> 0 | T73: 0
A74: ООО "УК"Татбурнефть" | B74: Осложнение при строительстве скважин (Битумные скважины) | C74: час/1000м. | D74: 2014 | E74: декабрь | F74: 0 | G74: =ROUND((ROUND((J74*#REF!),2)/#REF!),0) ->  | H74: 0 | I74: =J56 -> 0 | K74: 0 | L74: 0 | N74: 0 | O74: 0 | Q74: 0 | R74: 0 | T74: 0
A75: ООО "УК"Татбурнефть" | B75: Осложнение при строительстве скважин (Эксплуатационные скважины без битума) | C75: час/1000м. | D75: 2013 | E75: январь | F75: =G39 -> 0 | G75: =IFERROR(ROUND((((ROUND((J75*#REF!),2))+(ROUND((M75*#REF!),2))+(ROUND((Качественные!S75*#REF!),2)))/#REF!),0),0) -> 0 | H75: 0 | I75: =J39 -> 65 | J75: 45 | K75: 69.23076923 | L75: =M39 -> 44 | M75: 17 | N75: 38.63636364 | O75: =P39 -> 0 | Q75: 0 | R75: =S39 -> 37 | S75: 115 | T75: 310.8108108
A76: ООО "УК"Татбурнефть" | B76: Осложнение при строительстве скважин (Эксплуатационные скважины без битума) | C76: час/1000м. | D76: 2013 | E76: февраль | F76: =G42 -> 0 | G76: =IFERROR(ROUND((((ROUND((J76*#REF!),2))+(ROUND((M76*#REF!),2))+(ROUND((Качественные!S76*#REF!),2)))/#REF!),0),0) -> 0 | H76: 0 | I76: =J42 -> 53 | J76: 61 | K76: 115.0943396 | L76: =M42 -> 129 | M76: 10 | N76: 7.751937984 | O76: =P42 -> 0 | Q76: 0 | R76: =S42 -> 32 | S76: 57 | T76: 178.125
A77: ООО "УК"Татбурнефть" | B77: Осложнение при строительстве скважин (Эксплуатационные скважины без битума) | C77: час/1000м. | D77: 2013 | E77: март | F77: =G45 -> 0 | G77: =IFERROR(ROUND((((ROUND((J77*#REF!),2))+(ROUND((M77*#REF!),2))+(ROUND((Качественные!S77*#REF!),2)))/#REF!),0),0) -> 0 | H77: 0 | I77: =J45 -> 51 | J77: 64 | K77: 125.4901961 | L77: =M45 -> 67 | M77: 25 | N77: 37.31343284 | O77: =P45 -> 0 | Q77: 0 | R77: =S45 -> 38 | S77: -5 | T77: -13.15789474
A78: ООО "УК"Татбурнефть" | B78: Осложнение при строительстве скважин (Эксплуатационные скважины без битума) | C78: час/1000м. | D78: 2013 | E78: апрель | F78: =G48 -> 0 | G78: =IFERROR(ROUND((((ROUND((J78*#REF!),2))+(ROUND((M78*#REF!),2))+(ROUND((Качественные!S78*#REF!),2)))/#REF!),0),0) -> 0 | H78: 0 | I78: =J48 -> 64 | J78: 46 | K78: 71.875 | L78: =M48 -> 14 | M78: 29 | N78: 207.1428571 | O78: =P48 -> 0 | Q78: 0 | R78: =S48 -> 34 | S78: 142 | T78: 417.6470588
A79: ООО "УК"Татбурнефть" | B79: Осложнение при строительстве скважин (Эксплуатационные скважины без битума) | C79: час/1000м. | D79: 2013 | E79: май | F79: =G51 -> 0 | G79: =IFERROR(ROUND((((ROUND((J79*#REF!),2))+(ROUND((M79*#REF!),2))+(ROUND((Качественные!S79*#REF!),2)))/#REF!),0),0) -> 0 | H79: 0 | I79: =J51 -> 63 | J79: 53 | K79: 84.12698413 | L79: =M51 -> 32 | M79: 38 | N79: 118.75 | O79: =P51 -> 0 | Q79: 0 | R79: =S51 -> 75 | S79: 66 | T79: 88
A80: ООО "УК"Татбурнефть" | B80: Осложнение при строительстве скважин (Эксплуатационные скважины без битума) | C80: час/1000м. | D80: 2013 | E80: июнь | F80: =G54 -> 0 | G80: =IFERROR(ROUND((((ROUND((J80*#REF!),2))+(ROUND((M80*#REF!),2))+(ROUND((Качественные!S80*#REF!),2)))/#REF!),0),0) -> 0 | H80: 0 | I80: =J54 -> 54 | J80: 52 | K80: 96.2962963 | L80: =M54 -> 60 | M80: 0 | N80: 0 | O80: =P54 -> 0 | Q80: 0 | R80: =S54 -> 86 | S80: 21 | T80: 24.41860465
A81: ООО "УК"Татбурнефть" | B81: Осложнение при строительстве скважин (Эксплуатационные скважины без битума) | C81: час/1000м. | D81: 2013 | E81: июль | F81: =G57 -> 0 | G81: =IFERROR(ROUND((((ROUND((J81*#REF!),2))+(ROUND((M81*#REF!),2))+(ROUND((Качественные!S81*#REF!),2)))/#REF!),0),0) -> 0 | H81: 0 | I81: =J57 -> 61 | J81: 64 | K81: 104.9180328 | L81: =M57 -> 27 | M81: 0 | N81: 0 | O81: =P57 -> 0 | Q81: 0 | R81: =S57 -> 16 | S81: 40 | T81: 250
A82: ООО "УК"Татбурнефть" | B82: Осложнение при строительстве скважин (Эксплуатационные скважины без битума) | C82: час/1000м. | D82: 2013 | E82: август | F82: =G60 -> 0 | G82: =IFERROR(ROUND((((ROUND((J82*#REF!),2))+(ROUND((M82*#REF!),2))+(ROUND((Качественные!S82*#REF!),2)))/#REF!),0),0) -> 0 | H82: 0 | I82: =J60 -> 58 | J82: 40 | K82: 68.96551724 | L82: =M60 -> 67 | M82: 0 | N82: 0 | O82: =P60 -> 0 | Q82: 0 | R82: =S60 -> 24 | S82: 29 | T82: 120.8333333
A83: ООО "УК"Татбурнефть" | B83: Осложнение при строительстве скважин (Эксплуатационные скважины без битума) | C83: час/1000м. | D83: 2013 | E83: сентябрь | F83: =G63 -> 0 | G83: =IFERROR(ROUND((((ROUND((J83*#REF!),2))+(ROUND((M83*#REF!),2))+(ROUND((Качественные!S83*#REF!),2)))/#REF!),0),0) -> 0 | H83: 0 | I83: =J63 -> 57 | J83: 71 | K83: 124.5614035 | L83: =M63 -> 46 | M83: 22 | N83: 47.82608696 | O83: =P63 -> 0 | Q83: 0 | R83: =S63 -> 8 | S83: 20 | T83: 250
A84: ООО "УК"Татбурнефть" | B84: Осложнение при строительстве скважин (Эксплуатационные скважины без битума) | C84: час/1000м. | D84: 2013 | E84: октябрь | F84: =G66 -> 0 | G84: =IFERROR(ROUND((((ROUND((J84*#REF!),2))+(ROUND((M84*#REF!),2))+(ROUND((Качественные!S84*#REF!),2)))/#REF!),0),0) -> 0 | H84: 0 | I84: =J66 -> 64 | J84: 63 | K84: 98.4375 | L84: =M66 -> 123 | M84: 241 | N84: 195.9349593 | O84: =P66 -> 0 | Q84: 0 | R84: =S66 -> 28 | S84: 17 | T84: 60.71428571
A85: ООО "УК"Татбурнефть" | B85: Осложнение при строительстве скважин (Эксплуатационные скважины без битума) | C85: час/1000м. | D85: 2013 | E85: ноябрь | F85: =G69 -> 0 | G85: =IFERROR(ROUND((((ROUND((J85*#REF!),2))+(ROUND((M85*#REF!),2))+(ROUND((Качественные!S85*#REF!),2)))/#REF!),0),0) -> 0 | H85: 0 | I85: =J69 -> 82 | J85: 63 | K85: 76.82926829 | L85: =M69 -> 285 | M85: 0 | N85: 0 | O85: =P69 -> 0 | Q85: 0 | R85: =S69 -> 20 | S85: 10 | T85: 50
A86: ООО "УК"Татбурнефть" | B86: Осложнение при строительстве скважин (Эксплуатационные скважины без битума) | C86: час/1000м. | D86: 2013 | E86: декабрь | F86: =G72 -> 0 | G86: =IFERROR(ROUND((((ROUND((J86*#REF!),2))+(ROUND((M86*#REF!),2))+(ROUND((Качественные!S86*#REF!),2)))/#REF!),0),0) -> 0 | H86: 0 | I86: =J72 -> 49 | J86: 71 | K86: 144.8979592 | L86: =M72 -> 7 | N86: 0 | O86: =P72 -> 0 | Q86: 0 | R86: =S72 -> 40 | S86: 23 | T86: 57.5
A87: ООО "УК"Татбурнефть" | B87: Наработка нового оборудования (ВСП) | C87: ч. | D87: 2011 | E87: январь | F87: =I87+L87+O87+R87 -> 0 | G87: 0 | H87: =IFERROR(G87/F87*100,0) -> 0 | K87: =IFERROR(J87/I87*100,0) -> 0 | N87: =IFERROR(M87/L87*100,0) -> 0 | Q87: =IFERROR(P87/O87*100,0) -> 0 | T87: =IFERROR(S87/R87*100,0) -> 0
A88: ООО "УК"Татбурнефть" | B88: Наработка нового оборудования (БУРОВЫЕ НАСОСЫ) | C88: ч. | D88: 2011 | E88: январь | F88: 0 | G88: 0 | H88: =IFERROR(G88/F88*100,0) -> 0 | K88: =IFERROR(J88/I88*100,0) -> 0 | N88: =IFERROR(M88/L88*100,0) -> 0 | Q88: =IFERROR(P88/O88*100,0) -> 0 | T88: =IFERROR(S88/R88*100,0) -> 0
A89: ООО "УК"Татбурнефть" | B89: Наработка нового оборудования (АКБ (с манометром) | C89: ч. | D89: 2011 | E89: январь | F89: 0 | G89: 0 | H89: 0 | K89: 0 | N89: 0 | Q89: 0 | T89: 0
A90: ООО "УК"Татбурнефть" | B90: Наработка нового оборудования (ВСП) | C90: ч. | D90: 2011 | E90: февраль | F90: 0 | G90: 0 | H90: 0 | K90: 0 | N90: 0 | Q90: 0 | T90: 0
A91: ООО "УК"Татбурнефть" | B91: Наработка нового оборудования (БУРОВЫЕ НАСОСЫ) | C91: ч. | D91: 2011 | E91: февраль | F91: 0 | G91: 0 | H91: 0 | K91: 0 | N91: 0 | Q91: 0 | T91: 0
A92: ООО "УК"Татбурнефть" | B92: Наработка нового оборудования (АКБ (с манометром) | C92: ч. | D92: 2011 | E92: февраль | F92: 0 | G92: 0 | H92: 0 | K92: 0 | N92: 0 | Q92: 0 | T92: 0
A93: ООО "УК"Татбурнефть" | B93: Наработка нового оборудования (ВСП) | C93: ч. | D93: 2011 | E93: март | F93: 0 | G93: 0 | H93: 0 | K93: 0 | N93: 0 | Q93: 0 | T93: 0
A94: ООО "УК"Татбурнефть" | B94: Наработка нового оборудования (БУРОВЫЕ НАСОСЫ) | C94: ч. | D94: 2011 | E94: март | F94: 0 | G94: 0 | H94: 0 | K94: 0 | N94: 0 | Q94: 0 | T94: 0
A95: ООО "УК"Татбурнефть" | B95: Наработка нового оборудования (АКБ (с манометром) | C95: ч. | D95: 2011 | E95: март | F95: 0 | G95: 0 | H95: 0 | K95: 0 | N95: 0 | Q95: 0 | T95: 0
A96: ООО "УК"Татбурнефть" | B96: Наработка нового оборудования (ВСП) | C96: ч. | D96: 2011 | E96: апрель | F96: 0 | G96: 0 | H96: 0 | K96: 0 | N96: 0 | Q96: 0 | T96: 0
A97: ООО "УК"Татбурнефть" | B97: Наработка нового оборудования (БУРОВЫЕ НАСОСЫ) | C97: ч. | D97: 2011 | E97: апрель | F97: 0 | G97: 0 | H97: 0 | K97: 0 | N97: 0 | Q97: 0 | T97: 0
A98: ООО "УК"Татбурнефть" | B98: Наработка нового оборудования (АКБ (с манометром) | C98: ч. | D98: 2011 | E98: апрель | F98: 0 | G98: 0 | H98: 0 | K98: 0 | N98: 0 | Q98: 0 | T98: 0
A99: ООО "УК"Татбурнефть" | B99: Наработка нового оборудования (ВСП) | C99: ч. | D99: 2011 | E99: май | F99: 0 | G99: 0 | H99: 0 | K99: 0 | N99: 0 | Q99: 0 | T99: 0
A100: ООО "УК"Татбурнефть" | B100: Наработка нового оборудования (БУРОВЫЕ НАСОСЫ) | C100: ч. | D100: 2011 | E100: май | F100: 0 | G100: 0 | H100: 0 | K100: 0 | N100: 0 | Q100: 0 | T100: 0
A101: ООО "УК"Татбурнефть" | B101: Наработка нового оборудования (АКБ (с манометром) | C101: ч. | D101: 2011 | E101: май | F101: 0 | G101: 0 | H101: 0 | K101: 0 | N101: 0 | Q101: 0 | T101: 0
A102: ООО "УК"Татбурнефть" | B102: Наработка нового оборудования (ВСП) | C102: ч. | D102: 2011 | E102: июнь | F102: 0 | G102: 0 | H102: 0 | K102: 0 | N102: 0 | Q102: 0 | T102: 0
A103: ООО "УК"Татбурнефть" | B103: Наработка нового оборудования (БУРОВЫЕ НАСОСЫ) | C103: ч. | D103: 2011 | E103: июнь | F103: 0 | G103: 0 | H103: 0 | K103: 0 | N103: 0 | Q103: 0 | T103: 0
A104: ООО "УК"Татбурнефть" | B104: Наработка нового оборудования (АКБ (с манометром) | C104: ч. | D104: 2011 | E104: июнь | F104: 0 | G104: 0 | H104: 0 | K104: 0 | N104: 0 | Q104: 0 | T104: 0
A105: ООО "УК"Татбурнефть" | B105: Наработка нового оборудования (ВСП) | C105: ч. | D105: 2011 | E105: июль | F105: 0 | G105: 0 | H105: 0 | K105: 0 | N105: 0 | Q105: 0 | T105: 0
A106: ООО "УК"Татбурнефть" | B106: Наработка нового оборудования (БУРОВЫЕ НАСОСЫ) | C106: ч. | D106: 2011 | E106: июль | F106: 0 | G106: 0 | H106: 0 | K106: 0 | N106: 0 | Q106: 0 | T106: 0
A107: ООО "УК"Татбурнефть" | B107: Наработка нового оборудования (АКБ (с манометром) | C107: ч. | D107: 2011 | E107: июль | F107: 0 | G107: 0 | H107: 0 | K107: 0 | N107: 0 | Q107: 0 | T107: 0
A108: ООО "УК"Татбурнефть" | B108: Наработка нового оборудования (ВСП) | C108: ч. | D108: 2011 | E108: август | F108: 0 | G108: 0 | H108: 0 | K108: 0 | N108: 0 | Q108: 0 | T108: 0
A109: ООО "УК"Татбурнефть" | B109: Наработка нового оборудования (БУРОВЫЕ НАСОСЫ) | C109: ч. | D109: 2011 | E109: август | F109: 0 | G109: 0 | H109: 0 | K109: 0 | N109: 0 | Q109: 0 | T109: 0
A110: ООО "УК"Татбурнефть" | B110: Наработка нового оборудования (АКБ (с манометром) | C110: ч. | D110: 2011 | E110: август | F110: 0 | G110: 0 | H110: 0 | K110: 0 | N110: 0 | Q110: 0 | T110: 0
A111: ООО "УК"Татбурнефть" | B111: Наработка нового оборудования (ВСП) | C111: ч. | D111: 2011 | E111: сентябрь | F111: 0 | G111: 0 | H111: 0 | K111: 0 | N111: 0 | Q111: 0 | T111: 0
A112: ООО "УК"Татбурнефть" | B112: Наработка нового оборудования (БУРОВЫЕ НАСОСЫ) | C112: ч. | D112: 2011 | E112: сентябрь | F112: 0 | G112: 0 | H112: 0 | K112: 0 | N112: 0 | Q112: 0 | T112: 0
A113: ООО "УК"Татбурнефть" | B113: Наработка нового оборудования (АКБ (с манометром) | C113: ч. | D113: 2011 | E113: сентябрь | F113: 0 | G113: 0 | H113: 0 | K113: 0 | N113: 0 | Q113: 0 | T113: 0
A114: ООО "УК"Татбурнефть" | B114: Наработка нового оборудования (ВСП) | C114: ч. | D114: 2011 | E114: октябрь | F114: 0 | G114: 0 | H114: 0 | K114: 0 | N114: 0 | Q114: 0 | T114: 0
A115: ООО "УК"Татбурнефть" | B115: Наработка нового оборудования (БУРОВЫЕ НАСОСЫ) | C115: ч. | D115: 2011 | E115: октябрь | F115: 0 | G115: 0 | H115: 0 | K115: 0 | N115: 0 | Q115: 0 | T115: 0
A116: ООО "УК"Татбурнефть" | B116: Наработка нового оборудования (АКБ (с манометром) | C116: ч. | D116: 2011 | E116: октябрь | F116: 0 | G116: 0 | H116: 0 | K116: 0 | N116: 0 | Q116: 0 | T116: 0
A117: ООО "УК"Татбурнефть" | B117: Наработка нового оборудования (ВСП) | C117: ч. | D117: 2011 | E117: ноябрь | F117: 0 | G117: 0 | H117: 0 | K117: 0 | N117: 0 | Q117: 0 | T117: 0
A118: ООО "УК"Татбурнефть" | B118: Наработка нового оборудования (БУРОВЫЕ НАСОСЫ) | C118: ч. | D118: 2011 | E118: ноябрь | F118: 0 | G118: 0 | H118: 0 | K118: 0 | N118: 0 | Q118: 0 | T118: 0
A119: ООО "УК"Татбурнефть" | B119: Наработка нового оборудования (АКБ (с манометром) | C119: ч. | D119: 2011 | E119: ноябрь | F119: 0 | G119: 0 | H119: 0 | K119: 0 | N119: 0 | Q119: 0 | T119: 0
A120: ООО "УК"Татбурнефть" | B120: Наработка нового оборудования (ВСП) | C120: ч. | D120: 2011 | E120: декабрь | F120: 0 | G120: 0 | H120: 0 | K120: 0 | N120: 0 | Q120: 0 | T120: 0
A121: ООО "УК"Татбурнефть" | B121: Наработка нового оборудования (БУРОВЫЕ НАСОСЫ) | C121: ч. | D121: 2011 | E121: декабрь | F121: 0 | G121: 0 | H121: 0 | K121: 0 | N121: 0 | Q121: 0 | T121: 0
A122: ООО "УК"Татбурнефть" | B122: Наработка нового оборудования (АКБ (с манометром) | C122: ч. | D122: 2011 | E122: декабрь | F122: 0 | G122: 0 | H122: 0 | K122: 0 | N122: 0 | Q122: 0 | T122: 0
A123: ООО "УК"Татбурнефть" | B123: Наработка нового оборудования (ВСП) | C123: ч. | D123: 2012 | E123: январь | F123: 0 | G123: 0 | H123: 0 | I123: =J87 -> 0 | K123: 0 | L123: =M87 -> 0 | N123: 0 | O123: =P87 -> 0 | Q123: 0 | R123: =S87 -> 0 | T123: 0
A124: ООО "УК"Татбурнефть" | B124: Наработка нового оборудования (БУРОВЫЕ НАСОСЫ) | C124: ч. | D124: 2012 | E124: январь | F124: 0 | G124: 0 | H124: 0 | I124: 0 | K124: 0 | L124: 0 | N124: 0 | O124: 0 | Q124: 0 | R124: 0 | T124: 0
A125: ООО "УК"Татбурнефть" | B125: Наработка нового оборудования (АКБ (с манометром) | C125: ч. | D125: 2012 | E125: январь | F125: 0 | G125: 0 | H125: 0 | I125: 0 | K125: 0 | L125: 0 | N125: 0 | O125: 0 | Q125: 0 | R125: 0 | T125: 0
A126: ООО "УК"Татбурнефть" | B126: Наработка нового оборудования (ВСП) | C126: ч. | D126: 2012 | E126: февраль | F126: 0 | G126: 0 | H126: 0 | I126: 0 | K126: 0 | L126: 0 | N126: 0 | O126: 0 | Q126: 0 | R126: 0 | T126: 0
A127: ООО "УК"Татбурнефть" | B127: Наработка нового оборудования (БУРОВЫЕ НАСОСЫ) | C127: ч. | D127: 2012 | E127: февраль | F127: =I127+L127+O127+R127 -> 0 | G127: 0 | H127: 0 | I127: 0 | K127: 0 | L127: 0 | N127: 0 | O127: 0 | Q127: 0 | R127: 0 | T127: 0
A128: ООО "УК"Татбурнефть" | B128: Наработка нового оборудования (АКБ (с манометром) | C128: ч. | D128: 2012 | E128: февраль | F128: 0 | G128: 0 | H128: 0 | I128: 0 | K128: 0 | L128: 0 | N128: 0 | O128: 0 | Q128: 0 | R128: 0 | T128: 0
A129: ООО "УК"Татбурнефть" | B129: Наработка нового оборудования (ВСП) | C129: ч. | D129: 2012 | E129: март | F129: 0 | G129: 0 | H129: 0 | I129: 0 | K129: 0 | L129: 0 | N129: 0 | O129: 0 | Q129: 0 | R129: 0 | T129: 0
A130: ООО "УК"Татбурнефть" | B130: Наработка нового оборудования (БУРОВЫЕ НАСОСЫ) | C130: ч. | D130: 2012 | E130: март | F130: 0 | G130: 0 | H130: 0 | I130: 0 | K130: 0 | L130: 0 | N130: 0 | O130: 0 | Q130: 0 | R130: 0 | T130: 0
A131: ООО "УК"Татбурнефть" | B131: Наработка нового оборудования (АКБ (с манометром) | C131: ч. | D131: 2012 | E131: март | F131: 0 | G131: 0 | H131: 0 | I131: 0 | K131: 0 | L131: 0 | N131: 0 | O131: 0 | Q131: 0 | R131: 0 | T131: 0
A132: ООО "УК"Татбурнефть" | B132: Наработка нового оборудования (ВСП) | C132: ч. | D132: 2012 | E132: апрель | F132: 0 | G132: 0 | H132: 0 | I132: 0 | K132: 0 | L132: 0 | N132: 0 | O132: 0 | Q132: 0 | R132: 0 | T132: 0
A133: ООО "УК"Татбурнефть" | B133: Наработка нового оборудования (БУРОВЫЕ НАСОСЫ) | C133: ч. | D133: 2012 | E133: апрель | F133: 0 | G133: 0 | H133: 0 | I133: 0 | K133: 0 | L133: 0 | N133: 0 | O133: 0 | Q133: 0 | R133: 0 | T133: 0
A134: ООО "УК"Татбурнефть" | B134: Наработка нового оборудования (АКБ (с манометром) | C134: ч. | D134: 2012 | E134: апрель | F134: 0 | G134: 0 | H134: 0 | I134: 0 | K134: 0 | L134: 0 | N134: 0 | O134: 0 | Q134: 0 | R134: 0 | T134: 0
A135: ООО "УК"Татбурнефть" | B135: Наработка нового оборудования (ВСП) | C135: ч. | D135: 2012 | E135: май | F135: 0 | G135: 0 | H135: 0 | I135: 0 | K135: 0 | L135: 0 | N135: 0 | O135: 0 | Q135: 0 | R135: 0 | T135: 0
A136: ООО "УК"Татбурнефть" | B136: Наработка нового оборудования (БУРОВЫЕ НАСОСЫ) | C136: ч. | D136: 2012 | E136: май | F136: 0 | G136: 0 | H136: 0 | I136: 0 | K136: 0 | L136: 0 | N136: 0 | O136: 0 | Q136: 0 | R136: 0 | T136: 0
A137: ООО "УК"Татбурнефть" | B137: Наработка нового оборудования (АКБ (с манометром) | C137: ч. | D137: 2012 | E137: май | F137: 0 | G137: 0 | H137: 0 | I137: 0 | K137: 0 | L137: 0 | N137: 0 | O137: 0 | Q137: 0 | R137: 0 | T137: 0
A138: ООО "УК"Татбурнефть" | B138: Наработка нового оборудования (ВСП) | C138: ч. | D138: 2012 | E138: июнь | F138: 0 | G138: 0 | H138: 0 | I138: 0 | K138: 0 | L138: 0 | N138: 0 | O138: 0 | Q138: 0 | R138: 0 | T138: 0
A139: ООО "УК"Татбурнефть" | B139: Наработка нового оборудования (БУРОВЫЕ НАСОСЫ) | C139: ч. | D139: 2012 | E139: июнь | F139: 0 | G139: 0 | H139: 0 | I139: 0 | K139: 0 | L139: 0 | N139: 0 | O139: 0 | Q139: 0 | R139: 0 | T139: 0
A140: ООО "УК"Татбурнефть" | B140: Наработка нового оборудования (АКБ (с манометром) | C140: ч. | D140: 2012 | E140: июнь | F140: 0 | G140: 0 | H140: 0 | I140: 0 | K140: 0 | L140: 0 | N140: 0 | O140: 0 | Q140: 0 | R140: 0 | T140: 0
A141: ООО "УК"Татбурнефть" | B141: Наработка нового оборудования (ВСП) | C141: ч. | D141: 2012 | E141: июль | F141: 0 | G141: 0 | H141: 0 | I141: 0 | K141: 0 | L141: 0 | N141: 0 | O141: 0 | Q141: 0 | R141: 0 | T141: 0
A142: ООО "УК"Татбурнефть" | B142: Наработка нового оборудования (БУРОВЫЕ НАСОСЫ) | C142: ч. | D142: 2012 | E142: июль | F142: 0 | G142: 0 | H142: 0 | I142: 0 | K142: 0 | L142: 0 | N142: 0 | O142: 0 | Q142: 0 | R142: 0 | T142: 0
A143: ООО "УК"Татбурнефть" | B143: Наработка нового оборудования (АКБ (с манометром) | C143: ч. | D143: 2012 | E143: июль | F143: 0 | G143: 0 | H143: 0 | I143: 0 | K143: 0 | L143: 0 | N143: 0 | O143: 0 | Q143: 0 | R143: 0 | T143: 0
A144: ООО "УК"Татбурнефть" | B144: Наработка нового оборудования (ВСП) | C144: ч. | D144: 2012 | E144: август | F144: 0 | G144: 0 | H144: 0 | I144: 0 | K144: 0 | L144: 0 | N144: 0 | O144: 0 | Q144: 0 | R144: 0 | T144: 0
A145: ООО "УК"Татбурнефть" | B145: Наработка нового оборудования (БУРОВЫЕ НАСОСЫ) | C145: ч. | D145: 2012 | E145: август | F145: 0 | G145: 0 | H145: 0 | I145: 0 | K145: 0 | L145: 0 | N145: 0 | O145: 0 | Q145: 0 | R145: 0 | T145: 0
A146: ООО "УК"Татбурнефть" | B146: Наработка нового оборудования (АКБ (с манометром) | C146: ч. | D146: 2012 | E146: август | F146: 0 | G146: 52 | H146: 0 | I146: 0 | J146: 52 | K146: 0 | L146: 0 | N146: 0 | O146: 0 | Q146: 0 | R146: 0 | T146: 0
A147: ООО "УК"Татбурнефть" | B147: Наработка нового оборудования (ВСП) | C147: ч. | D147: 2012 | E147: сентябрь | F147: 0 | G147: 0 | H147: 0 | I147: 0 | K147: 0 | L147: 0 | N147: 0 | O147: 0 | Q147: 0 | R147: 0 | T147: 0
A148: ООО "УК"Татбурнефть" | B148: Наработка нового оборудования (БУРОВЫЕ НАСОСЫ) | C148: ч. | D148: 2012 | E148: сентябрь | F148: 0 | G148: 0 | H148: 0 | I148: 0 | K148: 0 | L148: 0 | N148: 0 | O148: 0 | Q148: 0 | R148: 0 | T148: 0
A149: ООО "УК"Татбурнефть" | B149: Наработка нового оборудования (АКБ (с манометром) | C149: ч. | D149: 2012 | E149: сентябрь | F149: 0 | G149: 301 | H149: 0 | I149: 0 | J149: 301 | K149: 0 | L149: 0 | N149: 0 | O149: 0 | Q149: 0 | R149: 0 | T149: 0
A150: ООО "УК"Татбурнефть" | B150: Наработка нового оборудования (ВСП) | C150: ч. | D150: 2012 | E150: октябрь | F150: 0 | G150: 0 | H150: 0 | I150: 0 | K150: 0 | L150: 0 | N150: 0 | O150: 0 | Q150: 0 | R150: 0 | T150: 0
A151: ООО "УК"Татбурнефть" | B151: Наработка нового оборудования (БУРОВЫЕ НАСОСЫ) | C151: ч. | D151: 2012 | E151: октябрь | F151: 0 | G151: 0 | H151: 0 | I151: 0 | K151: 0 | L151: 0 | N151: 0 | O151: 0 | Q151: 0 | R151: 0 | T151: 0
A152: ООО "УК"Татбурнефть" | B152: Наработка нового оборудования (АКБ (с манометром) | C152: ч. | D152: 2012 | E152: октябрь | F152: 0 | G152: 271 | H152: =IFERROR(G152/F152*100,0) -> 0 | I152: 0 | J152: 271 | K152: =IFERROR(J152/I152*100,0) -> 0 | L152: 0 | N152: =IFERROR(M152/L152*100,0) -> 0 | O152: 0 | Q152: =IFERROR(P152/O152*100,0) -> 0 | R152: 0 | T152: =IFERROR(S152/R152*100,0) -> 0
A153: ООО "УК"Татбурнефть" | B153: Наработка нового оборудования (ВСП) | C153: ч. | D153: 2012 | E153: ноябрь | F153: 0 | G153: 0 | H153: 0 | I153: 0 | K153: 0 | L153: 0 | N153: 0 | O153: 0 | Q153: 0 | R153: 0 | T153: 0
A154: ООО "УК"Татбурнефть" | B154: Наработка нового оборудования (БУРОВЫЕ НАСОСЫ) | C154: ч. | D154: 2012 | E154: ноябрь | F154: 0 | G154: 0 | H154: 0 | I154: 0 | K154: 0 | L154: 0 | N154: 0 | O154: 0 | Q154: 0 | R154: 0 | T154: 0
A155: ООО "УК"Татбурнефть" | B155: Наработка нового оборудования (АКБ (с манометром) | C155: ч. | D155: 2012 | E155: ноябрь | F155: 0 | G155: 325 | H155: 0 | I155: 0 | J155: 325 | K155: 0 | L155: 0 | N155: 0 | O155: 0 | Q155: 0 | R155: 0 | T155: 0
A156: ООО "УК"Татбурнефть" | B156: Наработка нового оборудования (ВСП) | C156: ч. | D156: 2012 | E156: декабрь | F156: 0 | G156: 0 | H156: 0 | I156: 0 | K156: 0 | L156: 0 | N156: 0 | O156: 0 | Q156: 0 | R156: 0 | T156: 0
A157: ООО "УК"Татбурнефть" | B157: Наработка нового оборудования (БУРОВЫЕ НАСОСЫ) | C157: ч. | D157: 2012 | E157: декабрь | F157: 0 | G157: 0 | H157: 0 | I157: 0 | K157: 0 | L157: 0 | N157: 0 | O157: 0 | Q157: 0 | R157: 0 | T157: 0
A158: ООО "УК"Татбурнефть" | B158: Наработка нового оборудования (АКБ (с манометром) | C158: ч. | D158: 2012 | E158: декабрь | F158: 0 | G158: 227 | H158: 0 | I158: 0 | J158: 227 | K158: 0 | L158: 0 | N158: 0 | O158: 0 | Q158: 0 | R158: 0 | T158: 0
A159: ООО "УК"Татбурнефть" | B159: Наработка нового оборудования (ВСП) | C159: ч. | D159: 2013 | E159: январь | F159: 0 | G159: 0 | H159: 0 | I159: 0 | K159: 0 | L159: 0 | N159: 0 | O159: 0 | Q159: 0 | R159: 0 | T159: 0
A160: ООО "УК"Татбурнефть" | B160: Наработка нового оборудования (БУРОВЫЕ НАСОСЫ) | C160: ч. | D160: 2013 | E160: январь | F160: 0 | G160: 0 | H160: 0 | I160: 0 | K160: 0 | L160: 0 | N160: 0 | O160: 0 | Q160: 0 | R160: 0 | T160: 0
A161: ООО "УК"Татбурнефть" | B161: Наработка нового оборудования (АКБ (с манометром) | C161: ч. | D161: 2013 | E161: январь | F161: 0 | G161: 354 | H161: 0 | I161: 0 | J161: 354 | K161: 0 | L161: 0 | N161: 0 | O161: 0 | Q161: 0 | R161: 0 | T161: 0
A162: ООО "УК"Татбурнефть" | B162: Наработка нового оборудования (ВСП) | C162: ч. | D162: 2013 | E162: февраль | F162: 0 | G162: 0 | H162: 0 | I162: 0 | K162: 0 | L162: 0 | N162: 0 | O162: 0 | Q162: 0 | R162: 0 | T162: 0
A163: ООО "УК"Татбурнефть" | B163: Наработка нового оборудования (БУРОВЫЕ НАСОСЫ) | C163: ч. | D163: 2013 | E163: февраль | F163: 0 | G163: 0 | H163: 0 | I163: 0 | K163: 0 | L163: 0 | N163: 0 | O163: 0 | Q163: 0 | R163: 0 | T163: 0
A164: ООО "УК"Татбурнефть" | B164: Наработка нового оборудования (АКБ (с манометром) | C164: ч. | D164: 2013 | E164: февраль | F164: 0 | G164: 647 | H164: 0 | I164: 0 | J164: 647 | K164: 0 | L164: 0 | N164: 0 | O164: 0 | Q164: 0 | R164: 0 | T164: 0
A165: ООО "УК"Татбурнефть" | B165: Наработка нового оборудования (ВСП) | C165: ч. | D165: 2013 | E165: март | F165: 0 | G165: 0 | H165: 0 | I165: 0 | K165: 0 | L165: 0 | N165: 0 | O165: 0 | Q165: 0 | R165: 0 | T165: 0
A166: ООО "УК"Татбурнефть" | B166: Наработка нового оборудования (БУРОВЫЕ НАСОСЫ) | C166: ч. | D166: 2013 | E166: март | F166: 0 | G166: 0 | H166: 0 | I166: 0 | K166: 0 | L166: 0 | N166: 0 | O166: 0 | Q166: 0 | R166: 0 | T166: 0
A167: ООО "УК"Татбурнефть" | B167: Наработка нового оборудования (АКБ (с манометром) | C167: ч. | D167: 2013 | E167: март | F167: 0 | G167: 593 | H167: 0 | I167: 0 | J167: 593 | K167: 0 | L167: 0 | N167: 0 | O167: 0 | Q167: 0 | R167: 0 | T167: 0
A168: ООО "УК"Татбурнефть" | B168: Наработка нового оборудования (ВСП) | C168: ч. | D168: 2013 | E168: апрель | F168: 0 | G168: 0 | H168: 0 | I168: 0 | K168: 0 | L168: 0 | N168: 0 | O168: 0 | Q168: 0 | R168: 0 | T168: 0
A169: ООО "УК"Татбурнефть" | B169: Наработка нового оборудования (БУРОВЫЕ НАСОСЫ) | C169: ч. | D169: 2013 | E169: апрель | F169: 0 | G169: 504 | H169: 0 | I169: 0 | J169: 504 | K169: 0 | L169: 0 | N169: 0 | O169: 0 | Q169: 0 | R169: 0 | T169: 0
A170: ООО "УК"Татбурнефть" | B170: Наработка нового оборудования (АКБ (с манометром) | C170: ч. | D170: 2013 | E170: апрель | F170: 0 | G170: 406 | H170: 0 | I170: 0 | J170: 406 | K170: 0 | L170: 0 | N170: 0 | O170: 0 | Q170: 0 | R170: 0 | T170: 0
A171: ООО "УК"Татбурнефть" | B171: Наработка нового оборудования (ВСП) | C171: ч. | D171: 2013 | E171: май | F171: 0 | G171: 106 | H171: 0 | I171: 0 | J171: 106 | K171: 0 | L171: 0 | N171: 0 | O171: 0 | Q171: 0 | R171: 0 | T171: 0
A172: ООО "УК"Татбурнефть" | B172: Наработка нового оборудования (БУРОВЫЕ НАСОСЫ) | C172: ч. | D172: 2013 | E172: май | F172: 0 | G172: 429 | H172: 0 | I172: 0 | J172: 429 | K172: 0 | L172: 0 | N172: 0 | O172: 0 | Q172: 0 | R172: 0 | T172: 0
A173: ООО "УК"Татбурнефть" | B173: Наработка нового оборудования (АКБ (с манометром) | C173: ч. | D173: 2013 | E173: май | F173: 0 | G173: 622 | H173: 0 | I173: 0 | J173: 622 | K173: 0 | L173: 0 | N173: 0 | O173: 0 | Q173: 0 | R173: 0 | T173: 0
A174: ООО "УК"Татбурнефть" | B174: Наработка нового оборудования (ВСП) | C174: ч. | D174: 2013 | E174: июнь | F174: 0 | G174: 159 | H174: 0 | I174: 0 | J174: 159 | K174: 0 | L174: 0 | N174: 0 | O174: 0 | Q174: 0 | R174: 0 | T174: 0
A175: ООО "УК"Татбурнефть" | B175: Наработка нового оборудования (БУРОВЫЕ НАСОСЫ) | C175: ч. | D175: 2013 | E175: июнь | F175: 0 | G175: 1449 | H175: 0 | I175: 0 | J175: 1449 | K175: 0 | L175: 0 | N175: 0 | O175: 0 | Q175: 0 | R175: 0 | T175: 0
A176: ООО "УК"Татбурнефть" | B176: Наработка нового оборудования (АКБ (с манометром) | C176: ч. | D176: 2013 | E176: июнь | F176: 0 | G176: 632 | H176: 0 | I176: 0 | J176: 632 | K176: 0 | L176: 0 | N176: 0 | O176: 0 | Q176: 0 | R176: 0 | T176: 0
A177: ООО "УК"Татбурнефть" | B177: Наработка нового оборудования (ВСП) | C177: ч. | D177: 2013 | E177: июль | F177: 0 | G177: 443 | H177: 0 | I177: 0 | J177: 443 | K177: 0 | L177: 0 | N177: 0 | O177: 0 | Q177: 0 | R177: 0 | T177: 0
A178: ООО "УК"Татбурнефть" | B178: Наработка нового оборудования (БУРОВЫЕ НАСОСЫ) | C178: ч. | D178: 2013 | E178: июль | F178: 0 | G178: 2251 | H178: 0 | I178: 0 | J178: 2251 | K178: 0 | L178: 0 | N178: 0 | O178: 0 | Q178: 0 | R178: 0 | T178: 0
A179: ООО "УК"Татбурнефть" | B179: Наработка нового оборудования (АКБ (с манометром) | C179: ч. | D179: 2013 | E179: июль | F179: 0 | G179: 673 | H179: 0 | I179: 0 | J179: 673 | K179: 0 | L179: 0 | N179: 0 | O179: 0 | Q179: 0 | R179: 0 | T179: 0
A180: ООО "УК"Татбурнефть" | B180: Наработка нового оборудования (ВСП) | C180: ч. | D180: 2013 | E180: август | F180: 0 | G180: 297 | H180: 0 | I180: 0 | J180: 297 | K180: 0 | L180: 0 | N180: 0 | O180: 0 | Q180: 0 | R180: 0 | T180: 0
A181: ООО "УК"Татбурнефть" | B181: Наработка нового оборудования (БУРОВЫЕ НАСОСЫ) | C181: ч. | D181: 2013 | E181: август | F181: 0 | G181: 2466 | H181: 0 | I181: 0 | J181: 2466 | K181: 0 | L181: 0 | N181: 0 | O181: 0 | Q181: 0 | R181: 0 | T181: 0
A182: ООО "УК"Татбурнефть" | B182: Наработка нового оборудования (АКБ (с манометром) | C182: ч. | D182: 2013 | E182: август | F182: 52 | G182: 729 | H182: 1401.923077 | I182: 52 | J182: 729 | K182: 1401.923077 | L182: 0 | N182: 0 | O182: 0 | Q182: 0 | R182: 0 | T182: 0
A183: ООО "УК"Татбурнефть" | B183: Наработка нового оборудования (ВСП) | C183: ч. | D183: 2013 | E183: сентябрь | F183: 0 | G183: 409 | H183: 0 | I183: 0 | J183: 409 | K183: 0 | L183: 0 | N183: 0 | O183: 0 | Q183: 0 | R183: 0 | T183: 0
A184: ООО "УК"Татбурнефть" | B184: Наработка нового оборудования (БУРОВЫЕ НАСОСЫ) | C184: ч. | D184: 2013 | E184: сентябрь | F184: 0 | G184: 3068 | H184: 0 | I184: 0 | J184: 3068 | K184: 0 | L184: 0 | N184: 0 | O184: 0 | Q184: 0 | R184: 0 | T184: 0
A185: ООО "УК"Татбурнефть" | B185: Наработка нового оборудования (АКБ (с манометром) | C185: ч. | D185: 2013 | E185: сентябрь | F185: 301 | G185: 679 | H185: 225.5813953 | I185: 301 | J185: 679 | K185: 225.5813953 | L185: 0 | N185: 0 | O185: 0 | Q185: 0 | R185: 0 | T185: 0
A186: ООО "УК"Татбурнефть" | B186: Наработка нового оборудования (ВСП) | C186: ч. | D186: 2013 | E186: октябрь | F186: 0 | G186: 0 | H186: 0 | I186: 0 | K186: 0 | L186: 0 | N186: 0 | O186: 0 | Q186: 0 | R186: 0 | T186: 0
A187: ООО "УК"Татбурнефть" | B187: Наработка нового оборудования (БУРОВЫЕ НАСОСЫ) | C187: ч. | D187: 2013 | E187: октябрь | F187: 0 | G187: 0 | H187: 0 | I187: =J151 -> 0 | K187: 0 | L187: =M151 -> 0 | N187: 0 | O187: =P151 -> 0 | Q187: 0 | R187: =S151 -> 0 | T187: 0
A188: ООО "УК"Татбурнефть" | B188: Наработка нового оборудования (АКБ (с манометром) | C188: ч. | D188: 2013 | E188: октябрь | F188: 271 | G188: 0 | H188: 0 | I188: 271 | K188: 0 | L188: 0 | N188: 0 | O188: 0 | Q188: 0 | R188: 0 | T188: 0
A189: ООО "УК"Татбурнефть" | B189: Наработка нового оборудования (ВСП) | C189: ч. | D189: 2013 | E189: ноябрь | F189: 0 | G189: 0 | H189: 0 | I189: 0 | K189: 0 | L189: 0 | N189: 0 | O189: 0 | Q189: 0 | R189: 0 | T189: 0
A190: ООО "УК"Татбурнефть" | B190: Наработка нового оборудования (БУРОВЫЕ НАСОСЫ) | C190: ч. | D190: 2013 | E190: ноябрь | F190: 0 | G190: 0 | H190: 0 | I190: 0 | K190: 0 | L190: 0 | N190: 0 | O190: 0 | Q190: 0 | R190: 0 | T190: 0
A191: ООО "УК"Татбурнефть" | B191: Наработка нового оборудования (АКБ (с манометром) | C191: ч. | D191: 2013 | E191: ноябрь | F191: =I191+L191+O191+R191 -> 325 | G191: 0 | H191: 0 | I191: 325 | K191: 0 | L191: 0 | N191: 0 | O191: 0 | Q191: 0 | R191: 0 | T191: 0
A192: ООО "УК"Татбурнефть" | B192: Наработка нового оборудования (ВСП) | C192: ч. | D192: 2013 | E192: декабрь | F192: 0 | G192: 437.24 | H192: 0 | I192: 0 | J192: 437.24 | K192: 0 | L192: 0 | N192: 0 | O192: 0 | Q192: 0 | R192: 0 | T192: 0
A193: ООО "УК"Татбурнефть" | B193: Наработка нового оборудования (БУРОВЫЕ НАСОСЫ) | C193: ч. | D193: 2013 | E193: декабрь | F193: 0 | G193: 947.1 | H193: 0 | I193: 0 | J193: 947.1 | K193: 0 | L193: 0 | N193: 0 | O193: 0 | Q193: 0 | R193: 0 | T193: 0
A194: ООО "УК"Татбурнефть" | B194: Наработка нового оборудования (АКБ (с манометром) | C194: ч. | D194: 2013 | E194: декабрь | F194: 227 | G194: 541.33 | H194: 238.4713656 | I194: 227 | J194: 541.33 | K194: 238.4713656 | L194: 0 | N194: 0 | O194: 0 | Q194: 0 | R194: 0 | T194: 0
A195: ООО "УК"Татбурнефть" | B195: Производительность труда бригад бурения (в денежном выражении) | C195: тыс.руб/бр.бурения | D195: 2011 | E195: январь | F195: 0 | G195: 8704.68765 | H195: 0 | J195: 8704.68765 | K195: 0
A196: ООО "УК"Татбурнефть" | B196: Производительность труда бригад бурения (в денежном выражении) | C196: тыс.руб/бр.бурения | D196: 2011 | E196: февраль | F196: 0 | G196: 12513.37019 | H196: 0 | J196: 12513.37019 | K196: 0
A197: ООО "УК"Татбурнефть" | B197: Производительность труда бригад бурения (в денежном выражении) | C197: тыс.руб/бр.бурения | D197: 2011 | E197: март | F197: 0 | G197: 22376.2054 | H197: 0 | J197: 22376.2054 | K197: 0
A198: ООО "УК"Татбурнефть" | B198: Производительность труда бригад бурения (в денежном выражении) | C198: тыс.руб/бр.бурения | D198: 2011 | E198: апрель | F198: 0 | G198: 15754.81277 | H198: 0 | J198: 15754.81277 | K198: 0
A199: ООО "УК"Татбурнефть" | B199: Производительность труда бригад бурения (в денежном выражении) | C199: тыс.руб/бр.бурения | D199: 2011 | E199: май | F199: 0 | G199: 17768.67924 | H199: 0 | J199: 17768.67924 | K199: 0
A200: ООО "УК"Татбурнефть" | B200: Производительность труда бригад бурения (в денежном выражении) | C200: тыс.руб/бр.бурения | D200: 2011 | E200: июнь | F200: 0 | G200: 19472.02871 | H200: 0 | J200: 19472.02871 | K200: 0
... 186 more rows
